Department family,Entity,Date,Expense Type,Expense area,Supplier,Transaction number,Amount
Department for Culture Media and Sport,Department for Culture Media and Sport,01/04/2010,Learning & Development,Central Learning & Development,The Whitehall & Industry Group,30016623,"3,950.00"
Department for Culture Media and Sport,Department for Culture Media and Sport,01/04/2010,Grant to BBC:Home Broadcasting,Home Broadcasting:Grant to BBC,British Broadcasting Corporation,30016962,"34,993,000.00"
Department for Culture Media and Sport,Department for Culture Media and Sport,01/04/2010,Grant-in-Aid (DCMS NDPBs),GIA Sports bodies,Football Licencing Authority,30016980,"105,083.00"
Department for Culture Media and Sport,Department for Culture Media and Sport,01/04/2010,Grant-in-Aid (DCMS NDPBs),GIA Tourism bodies,Visit Britain,30016981,"4,208,000.00"
Department for Culture Media and Sport,Department for Culture Media and Sport,01/04/2010,Grant-in-Aid (DCMS NDPBs),GIA Museums & Galleries,National Maritime Museum,30017038,"1,632,500.00"
Department for Culture Media and Sport,Department for Culture Media and Sport,01/04/2010,Grant-in-Aid (DCMS NDPBs),GIA Museums & Galleries,National Museum of Science & Industry,30017039,"3,765,500.00"
Department for Culture Media and Sport,Department for Culture Media and Sport,01/04/2010,Grant-in-Aid (DCMS NDPBs),GIA Museums & Galleries,Victoria & Albert Museum,30017040,"3,827,874.00"
Department for Culture Media and Sport,Department for Culture Media and Sport,01/04/2010,Grant-in-Aid (DCMS NDPBs),GIA Museums & Galleries,The Royal Armouries,30017042,"723,000.00"
Department for Culture Media and Sport,Department for Culture Media and Sport,01/04/2010,Grant-in-Aid (DCMS NDPBs),GIA Architecture+Heritage,Royal Household,30017044,"1,742,250.00"
Department for Culture Media and Sport,Department for Culture Media and Sport,01/04/2010,Grant-in-Aid (DCMS NDPBs),GIA Museums & Galleries,Imperial War Museum,30017048,"2,160,732.00"
Department for Culture Media and Sport,Department for Culture Media and Sport,01/04/2010,Current Grants Private Sector,GIA Museums & Galleries,National Museum of Science & Industry,30017053,"240,046.00"
Department for Culture Media and Sport,Department for Culture Media and Sport,01/04/2010,Grant-in-Aid (DCMS NDPBs),GIA Libraries bodies,British Library ,30017056,"7,899,386.00"
Department for Culture Media and Sport,Department for Culture Media and Sport,01/04/2010,Grant-in-Aid (DCMS NDPBs),GIA Museums & Galleries,National Gallery,30017057,"1,979,592.00"
Department for Culture Media and Sport,Department for Culture Media and Sport,01/04/2010,Grant-in-Aid (DCMS NDPBs),GIA Museums & Galleries,Museum of Science & Ind in Manchester,30017058,"732,084.00"
Department for Culture Media and Sport,Department for Culture Media and Sport,01/04/2010,Grant-in-Aid (DCMS NDPBs),GIA Film Council,Film Council,30017062,"8,158,249.00"
Department for Culture Media and Sport,Department for Culture Media and Sport,01/04/2010,Grant-in-Aid (DCMS NDPBs),GIA Sports bodies,United Kingdom Sports Council,30017063,"4,818,833.00"
Department for Culture Media and Sport,Department for Culture Media and Sport,01/04/2010,Grant-in-Aid (DCMS NDPBs),GIA S4C Welsh Fourth Channel,Welsh Fourth Channel Authority,30017066,"9,415,000.00"
Department for Culture Media and Sport,Department for Culture Media and Sport,01/04/2010,Grant-in-Aid (DCMS NDPBs),GIA Architecture+Heritage,English Heritage,30017070,"12,000,000.00"
Department for Culture Media and Sport,Department for Culture Media and Sport,01/04/2010,Grant-in-Aid (DCMS NDPBs),GIA Sports bodies,Sport England,30017072,"20,000,000.00"
Department for Culture Media and Sport,Department for Culture Media and Sport,01/04/2010,Other Telephone Charges,Information Services,Vodafone (Corporate),30017078,"1,791.40"
Department for Culture Media and Sport,Department for Culture Media and Sport,01/04/2010,Other Telephone Charges,Information Services,Telefonica O2 UK Ltd,30017079,"3,799.29"
Department for Culture Media and Sport,Department for Culture Media and Sport,01/04/2010,External Course Fees,Information Services,Working Solutions,30017080,763.75
Department for Culture Media and Sport,Department for Culture Media and Sport,01/04/2010,Grant-in-Aid (DCMS NDPBs),GIA Museums & Galleries,National Museums & Galleries Merseyside,30017086,"2,046,114.00"
Department for Culture Media and Sport,Department for Culture Media and Sport,01/04/2010,Grant-in-Aid (DCMS NDPBs),GIA Museums & Galleries,Horniman Museum,30017118,"305,000.00"
Department for Culture Media and Sport,Department for Culture Media and Sport,01/04/2010,Grant-in-Aid (DCMS NDPBs),GIA Museums & Galleries,Natural History Museum,30017139,"4,174,000.00"
Department for Culture Media and Sport,Department for Culture Media and Sport,01/04/2010,Temp staff filling vacancy,Government Olympic Executive,Brook Street ( UK ) Ltd,30017148,751.96
Department for Culture Media and Sport,Department for Culture Media and Sport,01/04/2010,Other Consultancy,Government Olympic Executive,The Work Foundation,30017150,"14,500.00"
Department for Culture Media and Sport,Department for Culture Media and Sport,01/04/2010,T&S Overseas (Officials only),Government Olympic Executive,The London Organising Committee of the Olympic Games,30017151,"7,893.60"
Department for Culture Media and Sport,Department for Culture Media and Sport,01/04/2010,NSG Course Fees,Government Olympic Executive,National School of Government ,30017153,"1,240.00"
Department for Culture Media and Sport,Department for Culture Media and Sport,01/04/2010,IT Maintenance,Information Services,Atos Origin IT Services UK Ltd,30017160,626.78
Department for Culture Media and Sport,Department for Culture Media and Sport,01/04/2010,T&S UK (Officials only),DCMS Change Team,Hogg Robinson ( Travel ) Limited,30017162,"2,626.20"
Department for Culture Media and Sport,Department for Culture Media and Sport,01/04/2010,Grant-in-Aid (DCMS NDPBs),GIA Architecture+Heritage,English Heritage,30017187,"2,000,000.00"
Department for Culture Media and Sport,Department for Culture Media and Sport,01/04/2010,Grant-in-Aid (DCMS NDPBs),GIA Arts bodies,Arts Council of England,30017188,"45,110,139.00"
Department for Culture Media and Sport,Department for Culture Media and Sport,01/04/2010,Grant-in-Aid (DCMS NDPBs),GIA Museums & Galleries,British Museum,30017192,"2,661,000.00"
Department for Culture Media and Sport,Department for Culture Media and Sport,01/04/2010,Grant-in-Aid (DCMS NDPBs),GIA Museums & Galleries,National Portrait Gallery,30017193,"650,000.00"
Department for Culture Media and Sport,Department for Culture Media and Sport,01/04/2010,Grant-in-Aid (DCMS NDPBs),GIA Museums & Galleries,Sir John Soane's Museum,30017194,"100,433.00"
Department for Culture Media and Sport,Department for Culture Media and Sport,01/04/2010,Grant-in-Aid (DCMS NDPBs),GIA Museums & Galleries,Wallace Collection,30017195,"363,583.00"
Department for Culture Media and Sport,Department for Culture Media and Sport,01/04/2010,Grant-in-Aid (DCMS NDPBs),GIA Architecture+Heritage,Comm.for Architecture & the Built Envir.,30017196,"4,654,668.00"
Department for Culture Media and Sport,Department for Culture Media and Sport,01/04/2010,Other Consultancy,Government Olympic Executive,John Evans,30017197,"4,800.00"
Department for Culture Media and Sport,Department for Culture Media and Sport,01/04/2010,Official Functions,Government Olympic Executive,City Inn Westminster,30017204,"1,155.13"
Department for Culture Media and Sport,Department for Culture Media and Sport,06/04/2010,Grant-in-Aid (DCMS NDPBs),GIA Olympic Delivery Authority,Olympic Delivery Authority ,30016808,"170,400,000.00"
Department for Culture Media and Sport,Department for Culture Media and Sport,06/04/2010,Grant-in-Aid (DCMS NDPBs),GIA Museums & Galleries,Geffrye Museum ,30017212,"306,000.00"
Department for Culture Media and Sport,Department for Culture Media and Sport,07/04/2010,Grant to BBC:Home Broadcasting,Home Broadcasting:Grant to BBC,British Broadcasting Corporation,30016963,"34,993,000.00"
Department for Culture Media and Sport,Department for Culture Media and Sport,07/04/2010,NSG Course Fees,Evidence&Analysis admin projs,National School of Government ,30017021,"1,390.00"
Department for Culture Media and Sport,Department for Culture Media and Sport,07/04/2010,Grant-in-Aid (DCMS NDPBs),GIA Museums & Galleries,GIA-Tate Gallery,30017041,"5,075,596.00"
Department for Culture Media and Sport,Department for Culture Media and Sport,07/04/2010,Public Appointments,Public Engagmt + Recognition,COI Communication,30017125,"4,838.92"
Department for Culture Media and Sport,Department for Culture Media and Sport,07/04/2010,Temp staff filling vacancy,Director Sport + Leisure admin,Josephine Sammons Ltd,30017129,831.61
Department for Culture Media and Sport,Department for Culture Media and Sport,07/04/2010,Publicity,Communications,The Stationery Office,30017154,"3,809.60"
Department for Culture Media and Sport,Department for Culture Media and Sport,07/04/2010,Conservation - Oil Paintings,Govt Art Collection programme,Philip Young Conservator of Paintings,30017164,"1,630.00"
Department for Culture Media and Sport,Department for Culture Media and Sport,07/04/2010,Current Grants Private Sector,GIA Museums & Galleries,Tyne and Wear Museums,30017206,"120,400.00"
Department for Culture Media and Sport,Department for Culture Media and Sport,07/04/2010,Conservation - Oil Paintings,Govt Art Collection programme,J Dimond T/A James Dimond Conservation,30017215,"5,535.00"
Department for Culture Media and Sport,Department for Culture Media and Sport,07/04/2010,Publicity,Dir Culture team + projects,Type Technique,30017220,"3,345.00"
Department for Culture Media and Sport,Department for Culture Media and Sport,07/04/2010,Publicity,Communications,The Team,30017222,"5,325.00"
Department for Culture Media and Sport,Department for Culture Media and Sport,07/04/2010,Conservation - Works on Paper,Govt Art Collection programme,Claire Gaskell,30017228,"8,830.00"
Department for Culture Media and Sport,Department for Culture Media and Sport,07/04/2010,Ceremonials - Other Costs,State Ceremonials Prog Costs,Printing.com@Chalk and Cheese Design,30017232,"3,898.00"
Department for Culture Media and Sport,Department for Culture Media and Sport,07/04/2010,Current Grants Private Sector,Arts Support in Culture Team,Poetry Society,30017233,"5,624.00"
Department for Culture Media and Sport,Department for Culture Media and Sport,07/04/2010,New Picture Frames,Govt Art Collection programme,Darbyshire Framemakers,30017243,"1,320.00"
Department for Culture Media and Sport,Department for Culture Media and Sport,08/04/2010,Research,CASE Joint Research Projects,Sport England,30017060,"38,400.00"
Department for Culture Media and Sport,Department for Culture Media and Sport,08/04/2010,Research,CASE Joint Research Projects,TBR,30017101,"9,247.50"
Department for Culture Media and Sport,Department for Culture Media and Sport,08/04/2010,Other Consultancy,Government Olympic Executive,Fresh Eyes Consulting Limited,30017128,875
Department for Culture Media and Sport,Department for Culture Media and Sport,08/04/2010,Research,CASE Joint Research Projects,Europe Economics,30017137,"35,250.00"
Department for Culture Media and Sport,Department for Culture Media and Sport,08/04/2010,Temp staff filling vacancy,Government Olympic Executive,Brook Street ( UK ) Ltd,30017208,941.52
Department for Culture Media and Sport,Department for Culture Media and Sport,08/04/2010,IT Capital Additions,Information Services,Atos Origin IT Services UK Ltd,30017210,"492,009.00"
Department for Culture Media and Sport,Department for Culture Media and Sport,08/04/2010,Other Consultancy,Government Olympic Executive,Northwest Regional Development Agency,30017216,"22,440.00"
Department for Culture Media and Sport,Department for Culture Media and Sport,08/04/2010,Current Grants Private Sector,International Inspiration,I I Foundation International Inspiration,30017218,"800,000.00"
Department for Culture Media and Sport,Department for Culture Media and Sport,08/04/2010,Temp staff filling vacancy,Government Olympic Executive,Hays Office Support,30017224,878.88
Department for Culture Media and Sport,Department for Culture Media and Sport,08/04/2010,Misc Committee Running Costs,Director Media admin costs,Wordwave International Ltd,30017225,719.1
Department for Culture Media and Sport,Department for Culture Media and Sport,08/04/2010,Other Consultancy,Government Olympic Executive,UK Sports Council,30017229,"4,484.25"
Department for Culture Media and Sport,Department for Culture Media and Sport,08/04/2010,Current Grants Private Sector,Tourism -Other Programme Spend,People 1st,30017230,"4,730.00"
Department for Culture Media and Sport,Department for Culture Media and Sport,08/04/2010,IT Capital Additions,Human Resources Team,Catalytic Consulting & Training,30017234,"15,510.00"
Department for Culture Media and Sport,Department for Culture Media and Sport,08/04/2010,Other Telephone Charges,Information Services,BT Payment Services Ltd,30017238,"3,427.99"
Department for Culture Media and Sport,Department for Culture Media and Sport,08/04/2010,Professional Subscriptions,Information Services,Information Commissioner,30017239,500
Department for Culture Media and Sport,Department for Culture Media and Sport,08/04/2010,Research,EAU Taking Part Survey,TNS UK LTD,30017241,"114,433.25"
Department for Culture Media and Sport,Department for Culture Media and Sport,08/04/2010,Research,EAU Taking Part Survey,TNS UK LTD,30017242,"38,101.73"
Department for Culture Media and Sport,Department for Culture Media and Sport,08/04/2010,IT Consultancy,Information Services,Quo Imus Ltd,30017246,"5,258.13"
Department for Culture Media and Sport,Department for Culture Media and Sport,08/04/2010,IT Consultancy,Information Services,Quo Imus Ltd,30017247,"1,051.63"
Department for Culture Media and Sport,Department for Culture Media and Sport,08/04/2010,Temp staff Interim managers,Human Resources Team,Morgan Law Partners LLP,30017250,"2,496.88"
Department for Culture Media and Sport,Department for Culture Media and Sport,08/04/2010,Temp staff Interim managers,Human Resources Team,Morgan Law Partners LLP,30017251,"2,350.00"
Department for Culture Media and Sport,Department for Culture Media and Sport,08/04/2010,Temp staff Interim managers,Human Resources Team,Morgan Law Partners LLP,30017252,"2,056.25"
Department for Culture Media and Sport,Department for Culture Media and Sport,08/04/2010,Temp staff filling vacancy,Finance & Planning,Allen Lane Public Sector Recruitment,30017253,"3,683.63"
Department for Culture Media and Sport,Department for Culture Media and Sport,08/04/2010,Publicity,Communications,The Stationery Office,30017257,"1,180.21"
Department for Culture Media and Sport,Department for Culture Media and Sport,08/04/2010,T&S UK (Officials only),Human Resources Team,Hogg Robinson ( Travel ) Limited,30017259,"1,386.70"
Department for Culture Media and Sport,Department for Culture Media and Sport,08/04/2010,T&S Overseas (Officials only),Procurement,Capita Business Travel Ltd,30017260,"11,896.01"
Department for Culture Media and Sport,Department for Culture Media and Sport,08/04/2010,Invest to Save -Current Grants,Arts ISB projects,Southbank Centre,30017263,"50,350.00"
Department for Culture Media and Sport,Department for Culture Media and Sport,08/04/2010,Publicity,Communications,Eclectic Media UK Ltd,30017264,"1,200.00"
Department for Culture Media and Sport,Department for Culture Media and Sport,08/04/2010,Current Grants Private Sector,Listed Places of Worship,Summary value of LPW grants paid by Liberata,30017267,"436,145.26"
Department for Culture Media and Sport,Department for Culture Media and Sport,09/04/2010,Grant-in-Aid (DCMS NDPBs),GIA Mus Libs Archives x-sector,Museums Libraries and Archives Council,30017211,"200,000.00"
Department for Culture Media and Sport,Department for Culture Media and Sport,09/04/2010,Oth Professional Services Prog,City of Culture-bid evaluation,Regeneris Consulting Ltd,30017261,"7,489.00"
Department for Culture Media and Sport,Department for Culture Media and Sport,09/04/2010,Temp staff filling vacancy,Government Olympic Executive,Brook Street ( UK ) Ltd,30017271,769.18
Department for Culture Media and Sport,Department for Culture Media and Sport,09/04/2010,Temp staff filling vacancy,Government Olympic Executive,Brook Street ( UK ) Ltd,30017272,742.62
Department for Culture Media and Sport,Department for Culture Media and Sport,09/04/2010,Other Consultancy,Government Olympic Executive,Welsh Assembley Government ,30017273,"1,870.00"
Department for Culture Media and Sport,Department for Culture Media and Sport,09/04/2010,Temp staff Interim managers,Government Olympic Executive,Russam GMS LTD,30017275,"5,067.19"
Department for Culture Media and Sport,Department for Culture Media and Sport,09/04/2010,Temp staff filling vacancy,Minister Sport,Brook Street ( UK ) Ltd,30017276,709.94
Department for Culture Media and Sport,Department for Culture Media and Sport,09/04/2010,Temp staff Interim managers,Government Olympic Executive,Russam GMS LTD,30017277,"10,134.38"
Department for Culture Media and Sport,Department for Culture Media and Sport,09/04/2010,Temp staff Interim managers,Government Olympic Executive,Russam GMS LTD,30017278,"12,161.25"
Department for Culture Media and Sport,Department for Culture Media and Sport,09/04/2010,Temp staff Interim managers,Government Olympic Executive,Russam GMS LTD,30017280,"13,681.41"
Department for Culture Media and Sport,Department for Culture Media and Sport,09/04/2010,Research,CASE Joint Research Projects,TBR,30017282,"9,247.50"
Department for Culture Media and Sport,Department for Culture Media and Sport,09/04/2010,Research,CASE Joint Research Projects,TBR,30017283,"16,440.00"
Department for Culture Media and Sport,Department for Culture Media and Sport,09/04/2010,Temp staff filling vacancy,Government Olympic Executive,Hays Office Support,30017286,522.05
Department for Culture Media and Sport,Department for Culture Media and Sport,09/04/2010,Research,CASE Joint Research Projects,"Inst of Education, University of London",30017287,"24,916.00"
Department for Culture Media and Sport,Department for Culture Media and Sport,09/04/2010,Temp staff filling vacancy,Government Olympic Executive,Hays Office Support,30017288,849.74
Department for Culture Media and Sport,Department for Culture Media and Sport,09/04/2010,Temp staff filling vacancy,Director Programmes,Brook Street ( UK ) Ltd,30017289,747.3
Department for Culture Media and Sport,Department for Culture Media and Sport,09/04/2010,T&S Overseas (Officials only),Government Olympic Executive,Foreign & Commonwealth Office ,30017296,638.28
Department for Culture Media and Sport,Department for Culture Media and Sport,09/04/2010,Conservation - Oil Paintings,Govt Art Collection programme,Mrs Carol Willoughby,30017302,"2,400.00"
Department for Culture Media and Sport,Department for Culture Media and Sport,09/04/2010,Other Consultancy,Government Olympic Executive,Universities South West,30017306,"14,960.00"
Department for Culture Media and Sport,Department for Culture Media and Sport,09/04/2010,Flag Flying,State Ceremonials Prog Costs,Brophy Grounds Maintenance Ltd,30017309,"26,448.44"
Department for Culture Media and Sport,Department for Culture Media and Sport,09/04/2010,Current Grants Private Sector,Football Foundation,Sport Resolutions (UK),30017313,"208,543.40"
Department for Culture Media and Sport,Department for Culture Media and Sport,12/04/2010,Publicity,Government Olympic Executive,Corporate Document Services Ltd,30017314,"13,865.01"
Department for Culture Media and Sport,Department for Culture Media and Sport,12/04/2010,Other Consultancy,Government Olympic Executive,South East England Development Agency,30017321,"3,410.00"
Department for Culture Media and Sport,Department for Culture Media and Sport,12/04/2010,Temp staff Interim managers,Human Resources Team,Morgan Law Partners LLP,30017329,"1,997.50"
Department for Culture Media and Sport,Department for Culture Media and Sport,12/04/2010,Temp staff Interim managers,Human Resources Team,Morgan Law Partners LLP,30017330,"1,880.00"
Department for Culture Media and Sport,Department for Culture Media and Sport,12/04/2010,Temp staff Interim managers,Human Resources Team,Morgan Law Partners LLP,30017331,"1,645.00"
Department for Culture Media and Sport,Department for Culture Media and Sport,13/04/2010,Grant to BBC:Home Broadcasting,Home Broadcasting:Grant to BBC,British Broadcasting Corporation,30016964,"139,900,000.00"
Department for Culture Media and Sport,Department for Culture Media and Sport,13/04/2010,Temp staff filling vacancy,Human Resources Team,Brook Street ( UK ) Ltd,30017254,529.7
Department for Culture Media and Sport,Department for Culture Media and Sport,13/04/2010,Temp staff filling vacancy,Human Resources Team,Brook Street ( UK ) Ltd,30017255,538.9
Department for Culture Media and Sport,Department for Culture Media and Sport,13/04/2010,IT Maintenance,Information Services,J Callaghan JC Communications,30017284,"14,805.00"
Department for Culture Media and Sport,Department for Culture Media and Sport,13/04/2010,IT Maintenance,Information Services,J Callaghan JC Communications,30017285,"5,922.00"
Department for Culture Media and Sport,Department for Culture Media and Sport,13/04/2010,Learning & Development,Central Learning & Development,Teleios Consulting South East Ltd,30017290,527.1
Department for Culture Media and Sport,Department for Culture Media and Sport,13/04/2010,Learning & Development,Central Learning & Development,Teleios Consulting South East Ltd,30017291,527.1
Department for Culture Media and Sport,Department for Culture Media and Sport,13/04/2010,Learning & Development,Central Learning & Development,National School of Government ,30017294,805
Department for Culture Media and Sport,Department for Culture Media and Sport,13/04/2010,Healthy Workplace,Human Resources Team,Health Management Ltd,30017295,"1,606.08"
Department for Culture Media and Sport,Department for Culture Media and Sport,13/04/2010,Learning & Development,Central Learning & Development,COI Communication,30017300,"6,300.00"
Department for Culture Media and Sport,Department for Culture Media and Sport,13/04/2010,Healthy Workplace,Human Resources Team,Online Ergonomics Ltd,30017305,582.21
Department for Culture Media and Sport,Department for Culture Media and Sport,13/04/2010,Other Consultancy,Public Engagmt + Recognition,Ann Robinson,30017307,645
Department for Culture Media and Sport,Department for Culture Media and Sport,13/04/2010,GAC Workshop supplies,Govt Art Collection programme,Designed Architectural Lighting Co Ltd,30017315,"9,282.50"
Department for Culture Media and Sport,Department for Culture Media and Sport,13/04/2010,Art Transport - UK,Govt Art Collection programme,Fine Art Services Ltd,30017322,546
Department for Culture Media and Sport,Department for Culture Media and Sport,13/04/2010,Art Transport - UK,Govt Art Collection programme,Fine Art Services Ltd,30017323,615
Department for Culture Media and Sport,Department for Culture Media and Sport,13/04/2010,Temp staff filling vacancy,Govt Art Collection admin cost,Brook Street ( UK ) Ltd,30017325,753.79
Department for Culture Media and Sport,Department for Culture Media and Sport,13/04/2010,IT Capital Additions,Human Resources Team,Logica CMG Enterprise Services,30017328,"1,365.35"
Department for Culture Media and Sport,Department for Culture Media and Sport,13/04/2010,Oth Professional Services Prog,IFNC Consortia Pilot Work,Procurement Excellence Ltd,30017333,"6,080.63"
Department for Culture Media and Sport,Department for Culture Media and Sport,13/04/2010,Current Grants to LAs,Free Swimming Programme,London Borough of Croydon,30017335,"181,697.50"
Department for Culture Media and Sport,Department for Culture Media and Sport,13/04/2010,Works Manager Fees,State Ceremonials Prog Costs,E C Harris LLP,30017347,"12,381.08"
Department for Culture Media and Sport,Department for Culture Media and Sport,13/04/2010,GAC Workshop supplies,Govt Art Collection programme,Ocean Design Storage Solutions Ltd,30017348,"2,875.22"
Department for Culture Media and Sport,Department for Culture Media and Sport,14/04/2010,Grant-in-Aid (DCMS NDPBs),GIA Mus Libs Archives x-sector,Museums Libraries and Archives Council,30017209,"3,000,000.00"
Department for Culture Media and Sport,Department for Culture Media and Sport,14/04/2010,IT Maintenance,Information Services,Becrypt Limited,30017341,"2,808.63"
Department for Culture Media and Sport,Department for Culture Media and Sport,14/04/2010,Management Consultants,Government Olympic Executive,Morgan Hunt Public Sector Ltd,30017342,"1,350.00"
Department for Culture Media and Sport,Department for Culture Media and Sport,14/04/2010,Conference&Seminar Attend Fees,Government Olympic Executive,ITSA Ltd,30017343,"1,175.00"
Department for Culture Media and Sport,Department for Culture Media and Sport,14/04/2010,Fund Strategic Commissioning,Creative Economy Programme,COI Communication,30017350,"58,750.00"
Department for Culture Media and Sport,Department for Culture Media and Sport,14/04/2010,Temp staff filling vacancy,Government Olympic Executive,Brook Street ( UK ) Ltd,30017383,866
Department for Culture Media and Sport,Department for Culture Media and Sport,14/04/2010,Temp staff filling vacancy,Director Sport + Leisure admin,Josephine Sammons Ltd,30017384,669.75
Department for Culture Media and Sport,Department for Culture Media and Sport,14/04/2010,Healthy Workplace,Human Resources Team,Workplace Options,30017399,"1,092.14"
Department for Culture Media and Sport,Department for Culture Media and Sport,14/04/2010,Research,CASE Joint Research Projects,Strategy Dynamics,30017412,"1,500.00"
Department for Culture Media and Sport,Department for Culture Media and Sport,14/04/2010,Translations,Dir Culture team + projects,Satis Ltd,30017413,922.25
Department for Culture Media and Sport,Department for Culture Media and Sport,15/04/2010,International Subscriptions,Architecture + heritage progs,UNESCO,30017205,"143,603.33"
Department for Culture Media and Sport,Department for Culture Media and Sport,15/04/2010,Building Maintenance,Estates & Property Services,CPM Interiors,30017265,"20,905.00"
Department for Culture Media and Sport,Department for Culture Media and Sport,15/04/2010,Fixtures+Fittings Capital Addn,Estates & Property Services,COMPUTACENTER,30017266,662.72
Department for Culture Media and Sport,Department for Culture Media and Sport,15/04/2010,Learning & Development,Central Learning & Development,National School of Government ,30017292,"2,000.00"
Department for Culture Media and Sport,Department for Culture Media and Sport,15/04/2010,Learning & Development,Central Learning & Development,Cabinet Office ,30017298,"1,035.00"
Department for Culture Media and Sport,Department for Culture Media and Sport,15/04/2010,Building Maintenance,Estates & Property Services,Oxford Exhibition Services,30017301,705
Department for Culture Media and Sport,Department for Culture Media and Sport,15/04/2010,Management of Grant Programmes,Listed Places of Worship,Liberata UK Ltd,30017326,"15,880.87"
Department for Culture Media and Sport,Department for Culture Media and Sport,15/04/2010,Management of Grant Programmes,Memorials VAT Grant Scheme,Liberata UK Ltd,30017334,"4,911.44"
Department for Culture Media and Sport,Department for Culture Media and Sport,15/04/2010,Office Accom Fuel & Utilities,Estates & Property Services,EDF Energy Ltd,30017344,"2,544.91"
Department for Culture Media and Sport,Department for Culture Media and Sport,15/04/2010,Office Accom Fuel & Utilities,Estates & Property Services,EDF Energy Ltd,30017345,"18,998.23"
Department for Culture Media and Sport,Department for Culture Media and Sport,15/04/2010,Research,EAU Policy Research + Eval,BIS,30017346,"4,500.00"
Department for Culture Media and Sport,Department for Culture Media and Sport,15/04/2010,Publicity Costs - Programme,Public Libraries Review,The Stationery Office,30017385,"6,534.64"
Department for Culture Media and Sport,Department for Culture Media and Sport,15/04/2010,Temp staff filling vacancy,Human Resources Team,Brook Street ( UK ) Ltd,30017396,535.4
Department for Culture Media and Sport,Department for Culture Media and Sport,15/04/2010,IT Capital Additions,Information Services,Atos Origin IT Services UK Ltd,30017402,"6,701.73"
Department for Culture Media and Sport,Department for Culture Media and Sport,15/04/2010,IT Capital Additions,Information Services,Atos Origin IT Services UK Ltd,30017403,621.81
Department for Culture Media and Sport,Department for Culture Media and Sport,15/04/2010,IT Capital Additions,Information Services,Atos Origin IT Services UK Ltd,30017404,"4,490.85"
Department for Culture Media and Sport,Department for Culture Media and Sport,15/04/2010,IT Capital Additions,Information Services,Atos Origin IT Services UK Ltd,30017405,"14,163.45"
Department for Culture Media and Sport,Department for Culture Media and Sport,15/04/2010,Temp staff Interim managers,Information Services,Contract Connections,30017406,"12,925.00"
Department for Culture Media and Sport,Department for Culture Media and Sport,15/04/2010,IT Capital Additions,Information Services,Atos Origin IT Services UK Ltd,30017407,"6,909.00"
Department for Culture Media and Sport,Department for Culture Media and Sport,15/04/2010,IT Maintenance,Information Services,The National Archives,30017408,"25,000.00"
Department for Culture Media and Sport,Department for Culture Media and Sport,15/04/2010,Other Capital Grants,Memorials VAT Grant Scheme,Summary value of MGS grants paid by Liberata,30017414,"14,415.13"
Department for Culture Media and Sport,Department for Culture Media and Sport,15/04/2010,Government Car Service,Secretary of State,GCDA ,30017417,655.38
Department for Culture Media and Sport,Department for Culture Media and Sport,15/04/2010,Research,Digital Switchover Programme,eaga plc Switchover Help Scheme,30017425,"66,589.35"
Department for Culture Media and Sport,Department for Culture Media and Sport,15/04/2010,New Picture Frames,Govt Art Collection programme,Alexander G Ley & Son,30017432,"1,900.00"
Department for Culture Media and Sport,Department for Culture Media and Sport,15/04/2010,Conservation - Oil Paintings,Govt Art Collection programme,J Dimond T/A James Dimond Conservation,30017434,855
Department for Culture Media and Sport,Department for Culture Media and Sport,15/04/2010,Other Library subscriptions,Evidence&Analysis admin projs,Factiva Ltd,30017437,"7,050.00"
Department for Culture Media and Sport,Department for Culture Media and Sport,15/04/2010,Publicity,Communications,Tate Entertaining,30017443,"2,554.21"
Department for Culture Media and Sport,Department for Culture Media and Sport,15/04/2010,Press Associated Subscriptions,Press Office,The Press Association,30017445,"1,547.92"
Department for Culture Media and Sport,Department for Culture Media and Sport,15/04/2010,National Cutting Service,Director Media admin costs,Precise (EDS),30017446,110.3
Department for Culture Media and Sport,Department for Culture Media and Sport,15/04/2010,National Cutting Service,Director Programmes,Precise (EDS),30017446,110.3
Department for Culture Media and Sport,Department for Culture Media and Sport,15/04/2010,Publicity,Government Olympic Executive,Precise (EDS),30017446,163.17
Department for Culture Media and Sport,Department for Culture Media and Sport,15/04/2010,National Cutting Service,Press Office,Precise (EDS),30017446,"4,714.38"
Department for Culture Media and Sport,Department for Culture Media and Sport,15/04/2010,Temp staff Interim managers,Government Olympic Executive,Alpine Consortium,30017447,"23,376.35"
Department for Culture Media and Sport,Department for Culture Media and Sport,15/04/2010,Temp staff Interim managers,Government Olympic Executive,Alpine Consortium,30017448,"44,897.19"
Department for Culture Media and Sport,Department for Culture Media and Sport,15/04/2010,Temp staff Interim managers,Government Olympic Executive,Alpine Consortium,30017449,"16,697.40"
Department for Culture Media and Sport,Department for Culture Media and Sport,15/04/2010,Temp staff Interim managers,Government Olympic Executive,Alpine Consortium,30017450,"22,263.20"
Department for Culture Media and Sport,Department for Culture Media and Sport,15/04/2010,Temp staff Interim managers,Government Olympic Executive,Alpine Consortium,30017451,"3,896.18"
Department for Culture Media and Sport,Department for Culture Media and Sport,15/04/2010,Current Grants Private Sector,International Inspiration,I I Foundation International Inspiration,30017452,"800,000.00"
Department for Culture Media and Sport,Department for Culture Media and Sport,15/04/2010,Other Consultancy,Government Olympic Executive,EEDA,30017453,"7,260.00"
Department for Culture Media and Sport,Department for Culture Media and Sport,15/04/2010,Temp staff Interim managers,Government Olympic Executive,Adecco UK Ltd,30017456,"4,886.40"
Department for Culture Media and Sport,Department for Culture Media and Sport,15/04/2010,Temp staff Interim managers,Government Olympic Executive,Russam GMS LTD,30017457,"21,058.88"
Department for Culture Media and Sport,Department for Culture Media and Sport,15/04/2010,Other Consultancy,Government Olympic Executive,COI Communication,30017458,"3,948.00"
Department for Culture Media and Sport,Department for Culture Media and Sport,16/04/2010,Grant to BBC:Home Broadcasting,Home Broadcasting:Grant to BBC,British Broadcasting Corporation,30016965,"34,993,000.00"
Department for Culture Media and Sport,Department for Culture Media and Sport,16/04/2010,Government Car Service,Minister Sport,GCDA ,30017418,"5,746.93"
Department for Culture Media and Sport,Department for Culture Media and Sport,16/04/2010,Government Car Service,Min for Culture Comms & CIs,GCDA ,30017419,"5,746.93"
Department for Culture Media and Sport,Department for Culture Media and Sport,16/04/2010,Government Car Service,Secretary of State,GCDA ,30017423,"5,875.22"
Department for Culture Media and Sport,Department for Culture Media and Sport,16/04/2010,Other Telephone Charges,Information Services,Verizon UK Ltd,30017426,762.58
Department for Culture Media and Sport,Department for Culture Media and Sport,16/04/2010,Advisory NDPB Member Fees,IFNC Consortia Pilot Work,Glyn Mathias,30017439,"1,300.00"
Department for Culture Media and Sport,Department for Culture Media and Sport,16/04/2010,Bud: Advisory NDPBs and Panels,IFNC Consortia Pilot Work,Hooper Communications,30017440,"2,504.51"
Department for Culture Media and Sport,Department for Culture Media and Sport,16/04/2010,Oth Professional Services Prog,IFNC Consortia Pilot Work,FTI UK Holdings Ltd,30017441,"41,767.49"
Department for Culture Media and Sport,Department for Culture Media and Sport,16/04/2010,Oth Professional Services Prog,IFNC Consortia Pilot Work,Robin Foster,30017442,"18,750.00"
Department for Culture Media and Sport,Department for Culture Media and Sport,16/04/2010,Publicity,Communications,Type Technique,30017444,740
Department for Culture Media and Sport,Department for Culture Media and Sport,16/04/2010,Temp staff filling vacancy,Government Olympic Executive,Brook Street ( UK ) Ltd,30017455,622.93
Department for Culture Media and Sport,Department for Culture Media and Sport,16/04/2010,Other Consultancy,Government Olympic Executive,COI Communication,30017459,"14,558.25"
Department for Culture Media and Sport,Department for Culture Media and Sport,16/04/2010,Serial Publications,Secretary of State,Jones Yarrell Leadenhall Ltd,30017463,613.53
Department for Culture Media and Sport,Department for Culture Media and Sport,16/04/2010,Temp staff Interim managers,Government Olympic Executive,AMTEC Consulting Group,30017465,"15,876.67"
Department for Culture Media and Sport,Department for Culture Media and Sport,16/04/2010,Professional Subscriptions,Human Resources Team,Towers Watson UK Limited,30017466,"1,380.00"
Department for Culture Media and Sport,Department for Culture Media and Sport,16/04/2010,National Cutting Service,Director Media admin costs,The Newspaper Licensing Agency Ltd,30017468,356.49
Department for Culture Media and Sport,Department for Culture Media and Sport,16/04/2010,National Cutting Service,Director Sport + Leisure admin,The Newspaper Licensing Agency Ltd,30017468,356.49
Department for Culture Media and Sport,Department for Culture Media and Sport,16/04/2010,National Cutting Service,Press Office,The Newspaper Licensing Agency Ltd,30017468,"3,564.94"
Department for Culture Media and Sport,Department for Culture Media and Sport,16/04/2010,Art Transport - UK,Govt Art Collection programme,Royal Collection Trust,30017469,443.5
Department for Culture Media and Sport,Department for Culture Media and Sport,16/04/2010,Art Transport - UK,Govt Art Collection programme,Jayhawk Ltd,30017470,520
Department for Culture Media and Sport,Department for Culture Media and Sport,16/04/2010,Accommodation Management Fees,Estates & Property Services,Cochrane McGregor & Associates Ltd,30017474,"4,650.36"
Department for Culture Media and Sport,Department for Culture Media and Sport,16/04/2010,Other Consultancy,Government Olympic Executive,John Evans,30017476,"4,800.00"
Department for Culture Media and Sport,Department for Culture Media and Sport,16/04/2010,Temp staff Interim managers,Government Olympic Executive,LA International,30017477,"20,276.23"
Department for Culture Media and Sport,Department for Culture Media and Sport,16/04/2010,Temp staff Interim managers,Government Olympic Executive,Russam GMS LTD,30017483,"9,120.94"
Department for Culture Media and Sport,Department for Culture Media and Sport,16/04/2010,Temp staff Interim managers,Government Olympic Executive,Russam GMS LTD,30017485,"8,107.50"
Department for Culture Media and Sport,Department for Culture Media and Sport,16/04/2010,Temp staff Interim managers,Government Olympic Executive,Russam GMS LTD,30017487,"8,107.50"
Department for Culture Media and Sport,Department for Culture Media and Sport,16/04/2010,Temp staff Interim managers,Government Olympic Executive,Russam GMS LTD,30017489,"8,107.50"
Department for Culture Media and Sport,Department for Culture Media and Sport,16/04/2010,Flag Flying,State Ceremonials Prog Costs,Brophy Grounds Maintenance Ltd,30017491,"18,408.54"
Department for Culture Media and Sport,Department for Culture Media and Sport,16/04/2010,Ceremonials Storage Costs,State Ceremonials Prog Costs,Brophy Grounds Maintenance Ltd,30017492,"1,271.89"
Department for Culture Media and Sport,Department for Culture Media and Sport,16/04/2010,Ceremonials - Other Costs,State Ceremonials Prog Costs,House of Flags,30017493,"52,960.00"
Department for Culture Media and Sport,Department for Culture Media and Sport,16/04/2010,Office Accom Fuel & Utilities,Estates & Property Services,British Gas Business,30017494,"1,742.33"
Department for Culture Media and Sport,Department for Culture Media and Sport,16/04/2010,Bud: Advisory NDPBs and Panels,IFNC Consortia Pilot Work,Fruxx Limited,30017497,"3,087.50"
Department for Culture Media and Sport,Department for Culture Media and Sport,16/04/2010,Publicity,Director Sport + Leisure admin,Rye Design,30017499,450
Department for Culture Media and Sport,Department for Culture Media and Sport,16/04/2010,Publicity,Director Sport + Leisure admin,Rye Design,30017500,450
Department for Culture Media and Sport,Department for Culture Media and Sport,19/04/2010,Publicity,Communications,Red Stone Design Ltd,30017394,"10,999.50"
Department for Culture Media and Sport,Department for Culture Media and Sport,19/04/2010,Temp staff filling vacancy,Minister Sport,Brook Street ( UK ) Ltd,30017501,513.77
Department for Culture Media and Sport,Department for Culture Media and Sport,19/04/2010,Temp staff filling vacancy,Government Olympic Executive,Hays Office Support,30017506,556.86
Department for Culture Media and Sport,Department for Culture Media and Sport,19/04/2010,Temp staff Interim managers,Human Resources Team,Morgan Law Partners LLP,30017517,"1,997.50"
Department for Culture Media and Sport,Department for Culture Media and Sport,19/04/2010,Temp staff Interim managers,Human Resources Team,Morgan Law Partners LLP,30017518,"1,880.00"
Department for Culture Media and Sport,Department for Culture Media and Sport,19/04/2010,Temp staff Interim managers,Government Olympic Executive,Russam GMS LTD,30017524,"15,159.86"
Department for Culture Media and Sport,Department for Culture Media and Sport,19/04/2010,Temp staff Interim managers,Government Olympic Executive,Russam GMS LTD,30017525,"10,134.38"
Department for Culture Media and Sport,Department for Culture Media and Sport,19/04/2010,Temp staff Interim managers,Government Olympic Executive,Russam GMS LTD,30017526,"10,134.38"
Department for Culture Media and Sport,Department for Culture Media and Sport,20/04/2010,Grant-in-Aid (DCMS NDPBs),GIA Mus Libs Archives x-sector,Museums Libraries and Archives Council,30017207,"1,500,000.00"
Department for Culture Media and Sport,Department for Culture Media and Sport,20/04/2010,Publicity,Communications,Eclectic Media UK Ltd,30017389,"1,200.00"
Department for Culture Media and Sport,Department for Culture Media and Sport,20/04/2010,Publicity,Communications,Red Stone Design Ltd,30017391,"7,458.00"
Department for Culture Media and Sport,Department for Culture Media and Sport,20/04/2010,Temp staff filling vacancy,Finance & Planning,Allen Lane Public Sector Recruitment,30017409,"1,227.88"
Department for Culture Media and Sport,Department for Culture Media and Sport,20/04/2010,Professional Subscriptions,Human Resources Team,Cabinet Office ,30017460,747
Department for Culture Media and Sport,Department for Culture Media and Sport,20/04/2010,Learning & Development,Central Learning & Development,National School of Government ,30017488,"5,592.93"
Department for Culture Media and Sport,Department for Culture Media and Sport,20/04/2010,Healthy Workplace,Human Resources Team,Central YMCA,30017495,705
Department for Culture Media and Sport,Department for Culture Media and Sport,20/04/2010,Local Photocopiers,Estates & Property Services,Canon (UK) Ltd,30017509,"15,743.30"
Department for Culture Media and Sport,Department for Culture Media and Sport,20/04/2010,Security,Estates & Property Services,MITIE Managed Sevices (Southern) Ltd,30017512,"53,875.93"
Department for Culture Media and Sport,Department for Culture Media and Sport,20/04/2010,IT Consumables,Information Services,Insight Direct (UK) Ltd,30017515,"1,091.87"
Department for Culture Media and Sport,Department for Culture Media and Sport,20/04/2010,Publicity,Communications,Park Communications,30017516,"2,240.00"
Department for Culture Media and Sport,Department for Culture Media and Sport,20/04/2010,Other Consultancy,Human Resources Team,Hewitt Associates Ltd,30017520,"1,679.40"
Department for Culture Media and Sport,Department for Culture Media and Sport,20/04/2010,Other Consultancy,Human Resources Team,Hewitt Associates Ltd,30017521,"1,671.46"
Department for Culture Media and Sport,Department for Culture Media and Sport,20/04/2010,Other Telephone Charges,Information Services,Rocom,30017527,757.59
Department for Culture Media and Sport,Department for Culture Media and Sport,20/04/2010,Temp staff filling vacancy,Director Sport + Leisure admin,Josephine Sammons Ltd,30017529,669.75
Department for Culture Media and Sport,Department for Culture Media and Sport,20/04/2010,Ceremonials - Other Costs,State Ceremonials Prog Costs,Cavalier Mailing Services Ltd,30017535,683.54
Department for Culture Media and Sport,Department for Culture Media and Sport,20/04/2010,Other Consultancy,Government Olympic Executive,Gateshead Borough Council,30017538,"6,490.00"
Department for Culture Media and Sport,Department for Culture Media and Sport,20/04/2010,Local Photocopiers,Estates & Property Services,Canon (UK) Ltd,30017543,571.87
Department for Culture Media and Sport,Department for Culture Media and Sport,20/04/2010,Other Hospitality,Estates & Property Services,Baxterstorey,30017544,"5,267.49"
Department for Culture Media and Sport,Department for Culture Media and Sport,20/04/2010,Other Hospitality,Estates & Property Services,Baxterstorey,30017545,"4,244.96"
Department for Culture Media and Sport,Department for Culture Media and Sport,20/04/2010,Apprenticeships,Human Resources Team,London Apprenticeship Company,30017550,414.72
Department for Culture Media and Sport,Department for Culture Media and Sport,20/04/2010,Apprenticeships,Public Engagmt + Recognition,London Apprenticeship Company,30017550,"1,467.77"
Department for Culture Media and Sport,Department for Culture Media and Sport,20/04/2010,Temp staff filling vacancy,Government Olympic Executive,Brook Street ( UK ) Ltd,30017552,709.94
Department for Culture Media and Sport,Department for Culture Media and Sport,20/04/2010,Temp staff filling vacancy,Government Olympic Executive,Hays Office Support,30017553,569.9
Department for Culture Media and Sport,Department for Culture Media and Sport,20/04/2010,Learning & Development,Central Learning & Development,National School of Government ,30017554,"2,440.00"
Department for Culture Media and Sport,Department for Culture Media and Sport,20/04/2010,Budget Temporary Staff,Finance & Planning,Allen Lane Public Sector Recruitment,30017555,"2,162.00"
Department for Culture Media and Sport,Department for Culture Media and Sport,20/04/2010,Other Consultancy,Director Media admin costs,Arqiva Limited,30017557,"17,234.90"
Department for Culture Media and Sport,Department for Culture Media and Sport,22/04/2010,Grant to BBC:Home Broadcasting,Home Broadcasting:Grant to BBC,British Broadcasting Corporation,30016966,"34,994,000.00"
Department for Culture Media and Sport,Department for Culture Media and Sport,22/04/2010,Serial Publications,Evidence&Analysis admin projs,The Stationery Office,30017498,"1,190.00"
Department for Culture Media and Sport,Department for Culture Media and Sport,22/04/2010,Grant-in-Aid (DCMS NDPBs),GIA Architecture+Heritage,English Heritage,30017560,"3,000,000.00"
Department for Culture Media and Sport,Department for Culture Media and Sport,22/04/2010,Current Grants Private Sector,GIA Architecture+Heritage,Chatham Historic Dockyard Trust,30017566,"75,000.00"
Department for Culture Media and Sport,Department for Culture Media and Sport,22/04/2010,Current Grants Private Sector,GIA Architecture+Heritage,Greenwich Foundation for the RN College,30017567,"750,000.00"
Department for Culture Media and Sport,Department for Culture Media and Sport,22/04/2010,Grant-in-Aid (DCMS NDPBs),GIA Mus Libs Archives x-sector,British Library ,30017568,"38,138.00"
Department for Culture Media and Sport,Department for Culture Media and Sport,22/04/2010,Grant-in-Aid (DCMS NDPBs),GIA Mus Libs Archives x-sector,British Museum,30017569,"108,381.00"
Department for Culture Media and Sport,Department for Culture Media and Sport,22/04/2010,Grant-in-Aid (DCMS NDPBs),GIA Mus Libs Archives x-sector,Imperial War Museum,30017570,"51,729.00"
Department for Culture Media and Sport,Department for Culture Media and Sport,22/04/2010,Grant-in-Aid (DCMS NDPBs),GIA Mus Libs Archives x-sector,National Gallery,30017571,"50,752.95"
Department for Culture Media and Sport,Department for Culture Media and Sport,22/04/2010,Current Grants Private Sector,Listed Places of Worship,Summary value of LPW grants paid by Liberata,30017572,"471,778.16"
Department for Culture Media and Sport,Department for Culture Media and Sport,22/04/2010,Grant-in-Aid (DCMS NDPBs),GIA Mus Libs Archives x-sector,National Maritime Museum,30017573,"86,751.95"
Department for Culture Media and Sport,Department for Culture Media and Sport,22/04/2010,Grant-in-Aid (DCMS NDPBs),GIA Mus Libs Archives x-sector,National Museums Liverpool,30017574,"53,776.00"
Department for Culture Media and Sport,Department for Culture Media and Sport,22/04/2010,Grant-in-Aid (DCMS NDPBs),GIA Mus Libs Archives x-sector,National Museum of Science & Industry,30017575,"64,718.00"
Department for Culture Media and Sport,Department for Culture Media and Sport,22/04/2010,Grant-in-Aid (DCMS NDPBs),GIA Mus Libs Archives x-sector,National Portrait Gallery,30017576,"99,752.00"
Department for Culture Media and Sport,Department for Culture Media and Sport,22/04/2010,Grant-in-Aid (DCMS NDPBs),GIA Mus Libs Archives x-sector,Natural History Museum,30017577,"74,918.00"
Department for Culture Media and Sport,Department for Culture Media and Sport,22/04/2010,Grant-in-Aid (DCMS NDPBs),GIA Mus Libs Archives x-sector,GIA-Tate Gallery,30017578,"100,659.07"
Department for Culture Media and Sport,Department for Culture Media and Sport,22/04/2010,Grant-in-Aid (DCMS NDPBs),GIA Mus Libs Archives x-sector,Victoria & Albert Museum,30017579,"61,596.64"
Department for Culture Media and Sport,Department for Culture Media and Sport,22/04/2010,Grant-in-Aid (DCMS NDPBs),GIA Mus Libs Archives x-sector,Wallace Collection,30017580,"61,789.00"
Department for Culture Media and Sport,Department for Culture Media and Sport,22/04/2010,Bud: Advisory NDPBs and Panels,IFNC Consortia Pilot Work,Valerie Atkinson,30017581,"4,062.50"
Department for Culture Media and Sport,Department for Culture Media and Sport,22/04/2010,Payroll (Logica),Human Resources Team,Logica CMG Enterprise Services,30017582,"3,033.62"
Department for Culture Media and Sport,Department for Culture Media and Sport,22/04/2010,Temp staff Interim managers,Government Olympic Executive,LA International,30017586,"18,477.82"
Department for Culture Media and Sport,Department for Culture Media and Sport,22/04/2010,IT Capital Additions,Human Resources Team,Atos Origin IT Services UK Ltd,30017587,"11,434.29"
Department for Culture Media and Sport,Department for Culture Media and Sport,22/04/2010,Conference&Seminar Attend Fees,Government Olympic Executive,ROI Solutions Limited,30017588,"9,675.00"
Department for Culture Media and Sport,Department for Culture Media and Sport,22/04/2010,Printing,Government Olympic Executive,Red Stone Design Ltd,30017589,"14,463.00"
Department for Culture Media and Sport,Department for Culture Media and Sport,22/04/2010,Temp staff filling vacancy,Government Olympic Executive,Hays Office Support,30017590,747.77
Department for Culture Media and Sport,Department for Culture Media and Sport,22/04/2010,Publicity,Director Sport + Leisure admin,Wordlink Ltd,30017591,"3,683.62"
Department for Culture Media and Sport,Department for Culture Media and Sport,22/04/2010,T&S UK (Officials only),Procurement,Hogg Robinson ( Travel ) Limited,30017592,"1,566.50"
Department for Culture Media and Sport,Department for Culture Media and Sport,22/04/2010,Temp staff filling vacancy,Human Resources Team,Brook Street ( UK ) Ltd,30017595,734.75
Department for Culture Media and Sport,Department for Culture Media and Sport,22/04/2010,Grant-in-Aid (DCMS NDPBs),GIA Mus Libs Archives x-sector,Imperial War Museum,30017598,"50,531.00"
Department for Culture Media and Sport,Department for Culture Media and Sport,22/04/2010,Temp staff filling vacancy,Minister Sport,Brook Street ( UK ) Ltd,30017601,700.59
Department for Culture Media and Sport,Department for Culture Media and Sport,22/04/2010,Temp staff filling vacancy,Finance & Planning,Allen Lane Public Sector Recruitment,30017607,"4,053.75"
Department for Culture Media and Sport,Department for Culture Media and Sport,22/04/2010,T&S Overseas (Officials only),Government Olympic Executive,The London Organising Committee of the,30017608,"5,536.90"
Department for Culture Media and Sport,Department for Culture Media and Sport,22/04/2010,Temp staff filling vacancy,Government Olympic Executive,Brook Street ( UK ) Ltd,30017609,666.26
Department for Culture Media and Sport,Department for Culture Media and Sport,23/04/2010,Oth Professional Services Prog,Film Support,Film Council,30017461,"5,000.00"
Department for Culture Media and Sport,Department for Culture Media and Sport,23/04/2010,IT Consumables,Information Services,CESG,30017533,"1,431.16"
Department for Culture Media and Sport,Department for Culture Media and Sport,23/04/2010,Publicity,Communications,Eclectic Media UK Ltd,30017583,"1,500.00"
Department for Culture Media and Sport,Department for Culture Media and Sport,23/04/2010,Publicity,Communications,The Stationery Office,30017584,"2,117.78"
Department for Culture Media and Sport,Department for Culture Media and Sport,23/04/2010,Publicity,Communications,The Stationery Office,30017585,"2,117.78"
Department for Culture Media and Sport,Department for Culture Media and Sport,23/04/2010,Other Telephone Charges,Information Services,Telefonica O2 UK Ltd,30017610,"3,635.20"
Department for Culture Media and Sport,Department for Culture Media and Sport,23/04/2010,Other Consultancy,Director Programmes,PriceWaterhouseCoopers,30017613,"2,860.00"
Department for Culture Media and Sport,Department for Culture Media and Sport,23/04/2010,Current Grants to LAs,Free Swimming Programme,Wyre Borough Council,30017615,"7,360.93"
Department for Culture Media and Sport,Department for Culture Media and Sport,23/04/2010,Government Car Service,Min for Culture Comms & CIs,GCDA ,30017618,"5,746.93"
Department for Culture Media and Sport,Department for Culture Media and Sport,23/04/2010,Management Consultants,Government Olympic Executive,Ernst & Young LLP,30017619,"50,000.00"
Department for Culture Media and Sport,Department for Culture Media and Sport,23/04/2010,T&S Overseas (Ministers only),Government Olympic Executive,The London Organising Committee of the,30017620,835.2
Department for Culture Media and Sport,Department for Culture Media and Sport,23/04/2010,Temp staff filling vacancy,Government Olympic Executive,Brook Street ( UK ) Ltd,30017621,602.5
Department for Culture Media and Sport,Department for Culture Media and Sport,23/04/2010,Temp staff filling vacancy,Govt Art Collection admin cost,Brook Street ( UK ) Ltd,30017624,612.45
Department for Culture Media and Sport,Department for Culture Media and Sport,23/04/2010,Research,EAU Taking Part Survey,TNS UK LTD,30017625,"3,700.00"
Department for Culture Media and Sport,Department for Culture Media and Sport,23/04/2010,NSG Course Fees,Evidence&Analysis admin projs,National School of Government ,30017627,"1,875.00"
Department for Culture Media and Sport,Department for Culture Media and Sport,23/04/2010,Temp staff filling vacancy,Government Olympic Executive,Hays Office Support,30017634,569.9
Department for Culture Media and Sport,Department for Culture Media and Sport,26/04/2010,Grant-in-Aid (DCMS NDPBs),GIA Architecture+Heritage,Churches Conservation Trust,30017628,"600,000.00"
Department for Culture Media and Sport,Department for Culture Media and Sport,26/04/2010,Other Consultancy,Government Olympic Executive,Welcome to Yorkshire,30017635,"30,033.47"
Department for Culture Media and Sport,Department for Culture Media and Sport,26/04/2010,Management Consultants,DCMS Change Team,People in Process,30017637,"12,000.00"
Department for Culture Media and Sport,Department for Culture Media and Sport,26/04/2010,Management Consultants,DCMS Change Team,People in Process,30017638,"4,800.00"
Department for Culture Media and Sport,Department for Culture Media and Sport,26/04/2010,Ceremonials Storage Costs,State Ceremonials Prog Costs,Piggotts Co Ltd,30017643,775
Department for Culture Media and Sport,Department for Culture Media and Sport,26/04/2010,Temp staff filling vacancy,Government Olympic Executive,Brook Street ( UK ) Ltd,30017644,565.14
Department for Culture Media and Sport,Department for Culture Media and Sport,26/04/2010,Conservation - Oil Paintings,Govt Art Collection programme,Simon Folkes,30017645,"1,350.00"
Department for Culture Media and Sport,Department for Culture Media and Sport,26/04/2010,Publicity,Communications,Red Stone Design Ltd,30017650,"4,496.00"
Department for Culture Media and Sport,Department for Culture Media and Sport,26/04/2010,Other Consultancy,Government Olympic Executive,Dept for Culture Arts & Leisure,30017651,"11,880.00"
Department for Culture Media and Sport,Department for Culture Media and Sport,26/04/2010,National Cutting Service,Press Office,The Newspaper Licensing Agency Ltd,30017652,"1,699.46"
Department for Culture Media and Sport,Department for Culture Media and Sport,26/04/2010,Digital Preservation Fund,Government Olympic Executive,The London Organising Committee of the Olympic Games,30017658,"64,000.00"
Department for Culture Media and Sport,Department for Culture Media and Sport,27/04/2010,National Non-Domestic Rates,Estates & Property Services,Westminster City Council,30017513,"144,761.00"
Department for Culture Media and Sport,Department for Culture Media and Sport,27/04/2010,Office Accom Fuel & Utilities,Estates & Property Services,Corona Energy,30017606,"5,456.35"
Department for Culture Media and Sport,Department for Culture Media and Sport,27/04/2010,IT Capital Additions,Human Resources Team,Skillsearch Ltd,30017614,"8,460.00"
Department for Culture Media and Sport,Department for Culture Media and Sport,27/04/2010,Debtors Unident Receipts,Balance Sheet,MITIE MANAGED SERVICES LTD,30017626,"13,041.39"
Department for Culture Media and Sport,Department for Culture Media and Sport,27/04/2010,Professional Subscriptions,Director Media admin costs,BIS,30017630,"5,872.35"
Department for Culture Media and Sport,Department for Culture Media and Sport,27/04/2010,Temp staff Interim managers,Human Resources Team,Morgan Law Partners LLP,30017660,"1,997.50"
Department for Culture Media and Sport,Department for Culture Media and Sport,27/04/2010,Temp staff Interim managers,Human Resources Team,Morgan Law Partners LLP,30017661,"2,350.00"
Department for Culture Media and Sport,Department for Culture Media and Sport,27/04/2010,Temp staff Interim managers,Human Resources Team,Morgan Law Partners LLP,30017662,"2,056.25"
Department for Culture Media and Sport,Department for Culture Media and Sport,27/04/2010,Grant-in-Aid (DCMS NDPBs),GIA Libraries bodies,Public Lending Right,30017668,"50,584.00"
Department for Culture Media and Sport,Department for Culture Media and Sport,27/04/2010,Temp staff filling vacancy,Finance & Planning,Allen Lane Public Sector Recruitment,30017674,"3,442.17"
Department for Culture Media and Sport,Department for Culture Media and Sport,28/04/2010,National Non-Domestic Rates,Estates & Property Services,London Borough of Camden,30017514,"24,070.00"
Department for Culture Media and Sport,Department for Culture Media and Sport,28/04/2010,Other Telephone Charges,Information Services,Daisy Telecoms,30017629,931.42
Department for Culture Media and Sport,Department for Culture Media and Sport,28/04/2010,Learning & Development,Central Learning & Development,Dod's Parliamentary Communications Ltd,30017675,480
Department for Culture Media and Sport,Department for Culture Media and Sport,28/04/2010,Learning & Development,Central Learning & Development,National School of Government ,30017676,715.5
Department for Culture Media and Sport,Department for Culture Media and Sport,28/04/2010,Learning & Development,Central Learning & Development,National School of Government ,30017677,"2,250.00"
Department for Culture Media and Sport,Department for Culture Media and Sport,28/04/2010,Temp staff filling vacancy,Government Olympic Executive,Brook Street ( UK ) Ltd,30017691,730.05
Department for Culture Media and Sport,Department for Culture Media and Sport,28/04/2010,Temp staff filling vacancy,Human Resources Team,Brook Street ( UK ) Ltd,30017692,899.93
Department for Culture Media and Sport,Department for Culture Media and Sport,28/04/2010,T&S UK (Officials only),Procurement,Hogg Robinson ( Travel ) Limited,30017695,618.8
Department for Culture Media and Sport,Department for Culture Media and Sport,28/04/2010,Other Telephone Charges,Information Services,Cable and Wireless,30017696,"2,498.34"
Department for Culture Media and Sport,Department for Culture Media and Sport,28/04/2010,Other Telephone Charges,Information Services,Cable and Wireless,30017697,"12,783.12"
Department for Culture Media and Sport,Department for Culture Media and Sport,28/04/2010,Learning & Development,Central Learning & Development,National School of Government ,30017698,"2,250.00"
Department for Culture Media and Sport,Department for Culture Media and Sport,28/04/2010,Publicity,Communications,Eclectic Media UK Ltd,30017700,"1,500.00"
Department for Culture Media and Sport,Department for Culture Media and Sport,28/04/2010,Temp staff Interim managers,Government Olympic Executive,Alpine Consortium,30017703,"3,710.51"
Department for Culture Media and Sport,Department for Culture Media and Sport,28/04/2010,Grant-in-Aid (DCMS NDPBs),The Royal Parks - funding,The Royal Parks ,30017705,"3,000,000.00"
Department for Culture Media and Sport,Department for Culture Media and Sport,29/04/2010,Temp staff filling vacancy,Director Sport + Leisure admin,Josephine Sammons Ltd,30017656,837.19
Department for Culture Media and Sport,Department for Culture Media and Sport,29/04/2010,Temp staff filling vacancy,Finance & Planning,Allen Lane Public Sector Recruitment,30017678,"2,702.50"
Department for Culture Media and Sport,Department for Culture Media and Sport,29/04/2010,Oth Professional Services Prog,IFNC Consortia Pilot Work,GR Media UK Limited,30017706,"12,327.57"
Department for Culture Media and Sport,Department for Culture Media and Sport,29/04/2010,Temp staff filling vacancy,Minister Sport,Brook Street ( UK ) Ltd,30017709,625.86
Department for Culture Media and Sport,Department for Culture Media and Sport,29/04/2010,Temp staff Interim managers,Government Olympic Executive,Russam GMS LTD,30017710,"14,188.13"
Department for Culture Media and Sport,Department for Culture Media and Sport,29/04/2010,Temp staff Interim managers,Government Olympic Executive,Russam GMS LTD,30017711,"10,134.38"
Department for Culture Media and Sport,Department for Culture Media and Sport,29/04/2010,Temp staff Interim managers,Government Olympic Executive,Russam GMS LTD,30017712,"10,134.38"
Department for Culture Media and Sport,Department for Culture Media and Sport,29/04/2010,Temp staff Interim managers,Government Olympic Executive,Russam GMS LTD,30017713,"9,120.94"
Department for Culture Media and Sport,Department for Culture Media and Sport,29/04/2010,Temp staff filling vacancy,Government Olympic Executive,Brook Street ( UK ) Ltd,30017714,845.01
Department for Culture Media and Sport,Department for Culture Media and Sport,30/04/2010,Temp staff filling vacancy,Public Engagmt + Recognition,Brook Street ( UK ) Ltd,30017720,538.9
Department for Culture Media and Sport,Department for Culture Media and Sport,30/04/2010,Temp staff filling vacancy,Public Engagmt + Recognition,Brook Street ( UK ) Ltd,30017722,576.33
Department for Culture Media and Sport,Department for Culture Media and Sport,30/04/2010,Management Consultants,Government Olympic Executive,Morgan Hunt Public Sector Ltd,30017723,810
Department for Culture Media and Sport,Department for Culture Media and Sport,30/04/2010,Management Consultants,Government Olympic Executive,Morgan Hunt Public Sector Ltd,30017724,"1,350.00"
Department for Culture Media and Sport,Department for Culture Media and Sport,30/04/2010,Other Telephone Charges,Information Services,Vodafone (Corporate),30017726,"2,034.99"
Department for Culture Media and Sport,Department for Culture Media and Sport,30/04/2010,Security,Estates & Property Services,Carillion Services Ltd,30017732,"51,730.85"
Department for Culture Media and Sport,Department for Culture Media and Sport,30/04/2010,Apprenticeships,Human Resources Team,London Apprenticeship Company,30017734,284.5
Department for Culture Media and Sport,Department for Culture Media and Sport,30/04/2010,Apprenticeships,Public Engagmt + Recognition,London Apprenticeship Company,30017734,"1,728.82"
Department for Culture Media and Sport,Department for Culture Media and Sport,30/04/2010,Temp staff filling vacancy,Government Olympic Executive,Brook Street ( UK ) Ltd,30017742,826.69
Department for Culture Media and Sport,Department for Culture Media and Sport,30/04/2010,Temp staff filling vacancy,Government Olympic Executive,Brook Street ( UK ) Ltd,30017743,728.62
Department for Culture Media and Sport,Department for Culture Media and Sport,30/04/2010,Capital Grant Private Sector,Grant support to NFTS,National Film & Television School,30017745,"261,833.00"
Department for Culture Media and Sport,Department for Culture Media and Sport,30/04/2010,Grant-in-Aid (DCMS NDPBs),GIA Tourism bodies,Visit Britain,30017746,"4,208,000.00"
1,,,,,,,
